[Event "December 5 Early 2023"]
[Site "https://www.chess.com"]
[Date "2023.12.05"]
[Round "10"]
[White "Bodnar, Nikolay"]
[Black "Shuvalova, Polina"]
[Result "0-1"]
[Board "41"]
[TimeControl "180+1"]
[WhiteFideId "14106469"]
[BlackFideId "24171760"]
[WhiteElo "2635"]
[BlackElo "2837"]
[WhiteTeam "UKR"]
[BlackTeam "RUS"]
[WhiteClock "0:00:50"]
[BlackClock "0:01:15"]

1. c4 {[%clk 0:03:00]}  e6 {[%clk 0:02:59]} 2. Nc3 {[%clk 0:03:00]}  d5 {[%clk 0:03:00]} 3. cxd5 {[%clk 0:02:58]}  exd5 {[%clk 0:03:00]} 4. d4 {[%clk 0:02:58]}  Nf6 {[%clk 0:02:59]} 5. Bg5 {[%clk 0:02:58]}  Be7 {[%clk 0:02:59]} 6. e3 {[%clk 0:02:58]}  O-O {[%clk 0:02:58]} 7. Bd3 {[%clk 0:02:58]}  h6 {[%clk 0:02:58]} 8. Bh4 {[%clk 0:02:58]}  Re8 {[%clk 0:02:56]} 9. Nf3 {[%clk 0:02:56]}  c6 {[%clk 0:02:55]} 10. Qc2 {[%clk 0:02:51]}  Nbd7 {[%clk 0:02:54]} 11. O-O {[%clk 0:02:51]}  Ne4 {[%clk 0:02:52]} 12. Bxe7 {[%clk 0:02:43]}  Qxe7 {[%clk 0:02:52]} 13. Rab1 {[%clk 0:02:43]}  Nd6 {[%clk 0:02:35]} 14. b4 {[%clk 0:02:40]}  a6 {[%clk 0:02:34]} 15. a4 {[%clk 0:02:39]}  b5 {[%clk 0:02:27]} 16. Ra1 {[%clk 0:02:37]}  Nb6 {[%clk 0:02:24]} 17. axb5 {[%clk 0:02:36]}  axb5 {[%clk 0:02:22]} 18. Rxa8 {[%clk 0:02:35]}  Nxa8 {[%clk 0:02:23]} 19. Re1 {[%clk 0:02:30]}  Nb6 {[%clk 0:02:19]} 20. e4 {[%clk 0:02:19]}  dxe4 {[%clk 0:02:17]} 21. Nxe4 {[%clk 0:02:19]}  Bf5 {[%clk 0:02:07]} 22. Qxc6 {[%clk 0:02:03]}  Nxe4 {[%clk 0:01:54]} 23. Qxb6 {[%clk 0:01:49]}  Qxb4 {[%clk 0:01:45]} 24. Qxb5 {[%clk 0:01:30]}  Qxb5 {[%clk 0:01:43]} 25. Bxb5 {[%clk 0:01:31]}  Rd8 {[%clk 0:01:42]} 26. Bd3 {[%clk 0:01:28]}  Nd6 {[%clk 0:01:42]} 27. Bxf5 {[%clk 0:01:28]}  Nxf5 {[%clk 0:01:43]} 28. Rd1 {[%clk 0:01:28]}  g5 {[%clk 0:01:39]} 29. h3 {[%clk 0:01:24]}  Kg7 {[%clk 0:01:38]} 30. Kf1 {[%clk 0:01:22]}  Kf6 {[%clk 0:01:37]} 31. Ke2 {[%clk 0:01:19]}  Ra8 {[%clk 0:01:33]} 32. Rd2 {[%clk 0:01:14]}  Ke6 {[%clk 0:01:31]} 33. g4 {[%clk 0:01:10]}  Ne7 {[%clk 0:01:29]} 34. Rb2 {[%clk 0:01:05]}  Nd5 {[%clk 0:01:28]} 35. h4 {[%clk 0:01:04]}  Ra3 {[%clk 0:01:22]} 36. hxg5 {[%clk 0:01:02]}  Nf4+ {[%clk 0:01:19]} 37. Kf1 {[%clk 0:00:57]}  Rxf3 {[%clk 0:01:20]} 38. Rb6+ {[%clk 0:00:54]}  Ke7 {[%clk 0:01:16]} 39. gxh6 {[%clk 0:00:53]}  Rh3 {[%clk 0:01:15]} 40. g5 {[%clk 0:00:50]}  Rh1# {[%clk 0:01:15]} 0-1

[Event "December 5 Early 2023"]
[Site "https://www.chess.com"]
[Date "2023.12.05"]
[Round "10"]
[White "Ambartsumova, Karina"]
[Black "IM_ArthurDW08"]
[Result "1/2-1/2"]
[Board "42"]
[TimeControl "180+1"]
[WhiteFideId "4166299"]
[WhiteElo "2632"]
[BlackElo "2809"]
[WhiteTeam "RUS"]
[WhiteClock "0:00:29"]
[BlackClock "0:00:18"]

1. d4 {[%clk 0:03:00]}  Nf6 {[%clk 0:02:59]} 2. c4 {[%clk 0:03:00]}  g6 {[%clk 0:03:00]} 3. Nf3 {[%clk 0:02:59]}  Bg7 {[%clk 0:03:00]} 4. g3 {[%clk 0:02:59]}  d6 {[%clk 0:03:00]} 5. Bg2 {[%clk 0:02:59]}  O-O {[%clk 0:03:00]} 6. O-O {[%clk 0:02:59]}  Bf5 {[%clk 0:02:59]} 7. Nc3 {[%clk 0:02:57]}  Ne4 {[%clk 0:02:58]} 8. Qb3 {[%clk 0:02:41]}  Nxc3 {[%clk 0:02:55]} 9. bxc3 {[%clk 0:02:35]}  Nc6 {[%clk 0:02:23]} 10. Qxb7 {[%clk 0:02:25]}  Na5 {[%clk 0:02:22]} 11. Qa6 {[%clk 0:02:18]}  c6 {[%clk 0:02:18]} 12. c5 {[%clk 0:02:08]}  dxc5 {[%clk 0:02:09]} 13. Ba3 {[%clk 0:01:35]}  Qb6 {[%clk 0:00:54]} 14. Qxb6 {[%clk 0:01:29]}  axb6 {[%clk 0:00:55]} 15. dxc5 {[%clk 0:01:15]}  bxc5 {[%clk 0:00:39]} 16. Bxc5 {[%clk 0:01:13]}  Bxc3 {[%clk 0:00:40]} 17. Rac1 {[%clk 0:01:00]}  Bf6 {[%clk 0:00:39]} 18. Nd4 {[%clk 0:00:56]}  Bd7 {[%clk 0:00:35]} 19. Rfd1 {[%clk 0:00:53]}  Nb7 {[%clk 0:00:25]} 20. Nxc6 {[%clk 0:00:38]}  Nxc5 {[%clk 0:00:22]} 21. Rxc5 {[%clk 0:00:35]}  Bxc6 {[%clk 0:00:20]} 22. Rxc6 {[%clk 0:00:34]}  Rxa2 {[%clk 0:00:20]} 23. e3 {[%clk 0:00:34]}  e6 {[%clk 0:00:19]} 24. Rdc1 {[%clk 0:00:32]}  Ra1 {[%clk 0:00:18]} 25. Rxa1 {[%clk 0:00:29]}  Bxa1 {[%clk 0:00:18]} 1/2-1/2

[Event "December 5 Early 2023"]
[Site "https://www.chess.com"]
[Date "2023.12.05"]
[Round "10"]
[White "Skatchkov, Valery"]
[Black "Wagh Suyog"]
[Result "0-1"]
[Board "44"]
[TimeControl "180+1"]
[WhiteFideId "24195812"]
[BlackFideId "25071688"]
[WhiteElo "2613"]
[BlackElo "2763"]
[WhiteTeam "RUS"]
[BlackTeam "IND"]
[WhiteClock "0:00:05"]
[BlackClock "0:00:07"]

1. d4 {[%clk 0:03:00]}  Nf6 {[%clk 0:02:58]} 2. c4 {[%clk 0:03:01]}  e6 {[%clk 0:02:59]} 3. Nc3 {[%clk 0:02:59]}  Bb4 {[%clk 0:02:59]} 4. e3 {[%clk 0:03:00]}  O-O {[%clk 0:02:58]} 5. Bd2 {[%clk 0:03:00]}  b6 {[%clk 0:02:58]} 6. Nf3 {[%clk 0:02:59]}  d5 {[%clk 0:02:58]} 7. cxd5 {[%clk 0:02:58]}  exd5 {[%clk 0:02:58]} 8. Bd3 {[%clk 0:02:54]}  Bd6 {[%clk 0:02:58]} 9. O-O {[%clk 0:02:47]}  Re8 {[%clk 0:02:58]} 10. Nb5 {[%clk 0:02:03]}  Bf8 {[%clk 0:02:57]} 11. Rc1 {[%clk 0:02:00]}  c5 {[%clk 0:02:57]} 12. Nc3 {[%clk 0:02:01]}  Nc6 {[%clk 0:02:55]} 13. dxc5 {[%clk 0:01:53]}  bxc5 {[%clk 0:02:55]} 14. Bb5 {[%clk 0:01:53]}  Bb7 {[%clk 0:02:45]} 15. Na4 {[%clk 0:01:53]}  Ne4 {[%clk 0:02:39]} 16. Nxc5 {[%clk 0:01:36]}  Bxc5 {[%clk 0:02:19]} 17. b4 {[%clk 0:01:24]}  Nxd2 {[%clk 0:01:28]} 18. Nxd2 {[%clk 0:01:23]}  Bxe3 {[%clk 0:01:22]} 19. fxe3 {[%clk 0:00:37]}  Qb6 {[%clk 0:01:22]} 20. Ba4 {[%clk 0:00:19]}  Rxe3 {[%clk 0:01:18]} 21. Kh1 {[%clk 0:00:19]}  Nxb4 {[%clk 0:01:18]} 22. Qh5 {[%clk 0:00:17]}  g6 {[%clk 0:01:15]} 23. Qh6 {[%clk 0:00:15]}  Re7 {[%clk 0:00:48]} 24. Nf3 {[%clk 0:00:14]}  Qf6 {[%clk 0:00:40]} 25. Rb1 {[%clk 0:00:09]}  a5 {[%clk 0:00:35]} 26. Ng5 {[%clk 0:00:08]}  Qg7 {[%clk 0:00:34]} 27. Qh4 {[%clk 0:00:07]}  f6 {[%clk 0:00:33]} 28. Nf3 {[%clk 0:00:06]}  Re4 {[%clk 0:00:30]} 29. Qg3 {[%clk 0:00:06]}  f5 {[%clk 0:00:29]} 30. a3 {[%clk 0:00:06]}  Na6 {[%clk 0:00:27]} 31. Qd6 {[%clk 0:00:06]}  Qe7 {[%clk 0:00:25]} 32. Qb6 {[%clk 0:00:05]}  Rb8 {[%clk 0:00:20]} 33. Bb3 {[%clk 0:00:04]}  Re6 {[%clk 0:00:17]} 34. Qd4 {[%clk 0:00:04]}  Bc6 {[%clk 0:00:16]} 35. Ba2 {[%clk 0:00:03]}  Rxb1 {[%clk 0:00:15]} 36. Rxb1 {[%clk 0:00:04]}  Nc7 {[%clk 0:00:16]} 37. Rc1 {[%clk 0:00:03]}  h6 {[%clk 0:00:14]} 38. Qb6 {[%clk 0:00:03]}  Qd7 {[%clk 0:00:13]} 39. h3 {[%clk 0:00:03]}  Kh7 {[%clk 0:00:13]} 40. Qf2 {[%clk 0:00:03]}  Rd6 {[%clk 0:00:12]} 41. Qh4 {[%clk 0:00:03]}  Kg7 {[%clk 0:00:11]} 42. Qd4+ {[%clk 0:00:03]}  Kh7 {[%clk 0:00:10]} 43. Ne5 {[%clk 0:00:04]}  Qe6 {[%clk 0:00:09]} 44. Re1 {[%clk 0:00:03]}  Qf6 {[%clk 0:00:09]} 45. Qf4 {[%clk 0:00:03]}  Ne6 {[%clk 0:00:09]} 46. Qg3 {[%clk 0:00:03]}  f4 {[%clk 0:00:09]} 47. Qf2 {[%clk 0:00:03]}  Ba8 {[%clk 0:00:09]} 48. Bb1 {[%clk 0:00:03]}  Nf8 {[%clk 0:00:10]} 49. Ng4 {[%clk 0:00:03]}  Qf7 {[%clk 0:00:10]} 50. Qc5 {[%clk 0:00:04]}  Re6 {[%clk 0:00:09]} 51. Rd1 {[%clk 0:00:04]}  h5 {[%clk 0:00:09]} 52. Nh2 {[%clk 0:00:04]}  d4 {[%clk 0:00:06]} 53. Nf3 {[%clk 0:00:04]}  Bxf3 {[%clk 0:00:06]} 54. gxf3 {[%clk 0:00:04]}  Rf6 {[%clk 0:00:06]} 55. Qxh5+ {[%clk 0:00:05]}  Kg7 {[%clk 0:00:06]} 56. Qe5 {[%clk 0:00:05]}  Qe6 {[%clk 0:00:05]} 57. Qxd4 {[%clk 0:00:05]}  Qxh3+ {[%clk 0:00:06]} 58. Kg1 {[%clk 0:00:05]}  Qg3+ {[%clk 0:00:06]} 59. Kf1 {[%clk 0:00:06]}  Qxf3+ {[%clk 0:00:07]} 60. Qf2 {[%clk 0:00:05]}  Qxd1+ {[%clk 0:00:07]} 0-1

[Event "December 5 Early 2023"]
[Site "https://www.chess.com"]
[Date "2023.12.05"]
[Round "10"]
[White "Arabidze, Meri"]
[Black "Iskusnyh, Sergei"]
[Result "0-1"]
[Board "49"]
[TimeControl "180+1"]
[WhiteFideId "13604040"]
[BlackFideId "4120027"]
[WhiteElo "2700"]
[BlackElo "2560"]
[WhiteTeam "GEO"]
[BlackTeam "RUS"]
[WhiteClock "0:00:00"]
[BlackClock "0:00:20"]

1. Nf3 {[%clk 0:03:00]}  d5 {[%clk 0:02:59]} 2. c4 {[%clk 0:03:00]}  c6 {[%clk 0:02:59]} 3. d4 {[%clk 0:02:59]}  Nf6 {[%clk 0:02:59]} 4. Nbd2 {[%clk 0:02:59]}  Bf5 {[%clk 0:02:53]} 5. Nh4 {[%clk 0:02:58]}  Be6 {[%clk 0:02:53]} 6. e3 {[%clk 0:02:54]}  g5 {[%clk 0:02:52]} 7. Nhf3 {[%clk 0:02:53]}  g4 {[%clk 0:02:52]} 8. Ne5 {[%clk 0:02:52]}  Nbd7 {[%clk 0:02:51]} 9. Be2 {[%clk 0:02:46]}  h5 {[%clk 0:02:47]} 10. b3 {[%clk 0:02:44]}  Nxe5 {[%clk 0:02:45]} 11. dxe5 {[%clk 0:02:44]}  Nd7 {[%clk 0:02:44]} 12. Bb2 {[%clk 0:02:38]}  Bg7 {[%clk 0:02:42]} 13. f4 {[%clk 0:02:27]}  gxf3 {[%clk 0:02:39]} 14. Nxf3 {[%clk 0:02:28]}  dxc4 {[%clk 0:02:35]} 15. O-O {[%clk 0:02:03]}  cxb3 {[%clk 0:02:28]} 16. Ng5 {[%clk 0:01:56]}  Qb6 {[%clk 0:01:28]} 17. Nxe6 {[%clk 0:01:46]}  Qxe3+ {[%clk 0:01:27]} 18. Kh1 {[%clk 0:01:46]}  fxe6 {[%clk 0:01:27]} 19. Bxh5+ {[%clk 0:01:32]}  Kd8 {[%clk 0:01:27]} 20. h3 {[%clk 0:01:10]}  Qg5 {[%clk 0:01:21]} 21. Bg4 {[%clk 0:01:07]}  Kc7 {[%clk 0:01:14]} 22. Bxe6 {[%clk 0:00:38]}  Rad8 {[%clk 0:01:08]} 23. Bc1 {[%clk 0:00:09]}  Qg3 {[%clk 0:00:54]} 24. Bf4 {[%clk 0:00:08]}  Qc3 {[%clk 0:00:53]} 25. Rc1 {[%clk 0:00:07]}  Qb2 {[%clk 0:00:45]} 26. Bxd7 {[%clk 0:00:07]}  Bxe5 {[%clk 0:00:41]} 27. Bxe5+ {[%clk 0:00:03]}  Qxe5 {[%clk 0:00:41]} 28. Qxb3 {[%clk 0:00:03]}  Rxd7 {[%clk 0:00:39]} 29. Rfe1 {[%clk 0:00:03]}  Qf4 {[%clk 0:00:29]} 30. Rb1 {[%clk 0:00:04]}  b6 {[%clk 0:00:28]} 31. a4 {[%clk 0:00:04]}  e5 {[%clk 0:00:22]} 32. a5 {[%clk 0:00:04]}  b5 {[%clk 0:00:23]} 33. a6 {[%clk 0:00:04]}  e4 {[%clk 0:00:21]} 34. Rbc1 {[%clk 0:00:04]}  Rd3 {[%clk 0:00:21]} 35. Qxb5 {[%clk 0:00:04]}  Rhxh3+ {[%clk 0:00:20]} 36. Kg1 {[%clk 0:00:02]}  Qh2+ {[%clk 0:00:20]} 37. Kf1 {[%clk 0:00:00]}  Rhf3+ {[%clk 0:00:20]} 0-1

[Event "December 5 Early 2023"]
[Site "https://www.chess.com"]
[Date "2023.12.05"]
[Round "10"]
[White "Nigalidze, Gaioz"]
[Black "Tan, Jonathan"]
[Result "0-1"]
[Board "50"]
[TimeControl "180+1"]
[WhiteFideId "13603078"]
[BlackFideId "5200482"]
[WhiteElo "2696"]
[BlackElo "2542"]
[WhiteTeam "GEO"]
[BlackTeam "PHI"]
[WhiteClock "0:02:20"]
[BlackClock "0:01:42"]

1. e4 {[%clk 0:03:00]}  g6 {[%clk 0:02:59]} 2. d4 {[%clk 0:02:58]}  Bg7 {[%clk 0:03:00]} 3. h4 {[%clk 0:02:58]}  d5 {[%clk 0:02:53]} 4. e5 {[%clk 0:02:57]}  h5 {[%clk 0:02:50]} 5. c3 {[%clk 0:02:56]}  c5 {[%clk 0:02:50]} 6. Nf3 {[%clk 0:02:54]}  Nc6 {[%clk 0:02:49]} 7. Bb5 {[%clk 0:02:48]}  Bg4 {[%clk 0:02:35]} 8. Bxc6+ {[%clk 0:02:46]}  bxc6 {[%clk 0:02:34]} 9. Bf4 {[%clk 0:02:46]}  Qb6 {[%clk 0:02:26]} 10. Qd2 {[%clk 0:02:45]}  Bxf3 {[%clk 0:02:23]} 11. gxf3 {[%clk 0:02:45]}  e6 {[%clk 0:02:19]} 12. dxc5 {[%clk 0:02:40]}  Qxc5 {[%clk 0:02:17]} 13. Qd4 {[%clk 0:02:39]}  Qb6 {[%clk 0:02:12]} 14. Qxb6 {[%clk 0:02:35]}  axb6 {[%clk 0:02:12]} 15. Nd2 {[%clk 0:02:33]}  Bh6 {[%clk 0:02:06]} 16. Bxh6 {[%clk 0:02:31]}  Nxh6 {[%clk 0:02:06]} 17. f4 {[%clk 0:02:31]}  Nf5 {[%clk 0:02:05]} 18. Nf3 {[%clk 0:02:30]}  c5 {[%clk 0:02:04]} 19. Kd2 {[%clk 0:02:29]}  Ra4 {[%clk 0:02:03]} 20. b4 {[%clk 0:02:28]}  cxb4 {[%clk 0:02:02]} 21. cxb4 {[%clk 0:02:28]}  Rxb4 {[%clk 0:02:01]} 22. Rab1 {[%clk 0:02:28]}  Rxf4 {[%clk 0:02:01]} 23. Ke2 {[%clk 0:02:28]}  Ra4 {[%clk 0:01:49]} 24. Rxb6 {[%clk 0:02:26]}  Rxa2+ {[%clk 0:01:47]} 25. Kf1 {[%clk 0:02:25]}  O-O {[%clk 0:01:45]} 26. Kg2 {[%clk 0:02:25]}  Rc8 {[%clk 0:01:43]} 27. Rf1 {[%clk 0:02:20]}  Ne3+ {[%clk 0:01:42]} 0-1

[Event "December 5 Early 2023"]
[Site "https://www.chess.com"]
[Date "2023.12.05"]
[Round "10"]
[White "Timerkhanov, Alexander"]
[Black "Jovic, Stanoje"]
[Result "1-0"]
[Board "54"]
[TimeControl "180+1"]
[WhiteFideId "24177938"]
[BlackFideId "905020"]
[WhiteElo "2655"]
[BlackElo "2483"]
[WhiteTeam "RUS"]
[BlackTeam "SRB"]
[WhiteClock "0:00:12"]
[BlackClock "0:00:00"]

1. d4 {[%clk 0:03:00]}  Nf6 {[%clk 0:02:59]} 2. Bg5 {[%clk 0:03:00]}  d5 {[%clk 0:02:57]} 3. Nd2 {[%clk 0:03:00]}  Ne4 {[%clk 0:02:51]} 4. Nxe4 {[%clk 0:02:56]}  dxe4 {[%clk 0:02:51]} 5. e3 {[%clk 0:02:56]}  c5 {[%clk 0:02:46]} 6. c3 {[%clk 0:02:52]}  Nc6 {[%clk 0:02:34]} 7. Bc4 {[%clk 0:02:45]}  cxd4 {[%clk 0:02:20]} 8. exd4 {[%clk 0:02:43]}  h6 {[%clk 0:02:12]} 9. Be3 {[%clk 0:02:31]}  g5 {[%clk 0:02:07]} 10. h4 {[%clk 0:02:29]}  gxh4 {[%clk 0:01:58]} 11. Qh5 {[%clk 0:02:26]}  e6 {[%clk 0:01:48]} 12. Ne2 {[%clk 0:02:15]}  Qa5 {[%clk 0:01:38]} 13. Qxh4 {[%clk 0:02:12]}  b5 {[%clk 0:01:16]} 14. Qxe4 {[%clk 0:01:49]}  Bb7 {[%clk 0:01:08]} 15. Bb3 {[%clk 0:01:43]}  O-O-O {[%clk 0:01:04]} 16. Qh4 {[%clk 0:01:33]}  b4 {[%clk 0:00:57]} 17. Qh5 {[%clk 0:01:26]}  Qc7 {[%clk 0:00:50]} 18. Bf4 {[%clk 0:01:02]}  Bd6 {[%clk 0:00:44]} 19. Bxd6 {[%clk 0:00:59]}  Rxd6 {[%clk 0:00:44]} 20. Qc5 {[%clk 0:00:54]}  bxc3 {[%clk 0:00:41]} 21. bxc3 {[%clk 0:00:53]}  Kb8 {[%clk 0:00:38]} 22. Ng3 {[%clk 0:00:43]}  f5 {[%clk 0:00:34]} 23. Rb1 {[%clk 0:00:39]}  Rc8 {[%clk 0:00:32]} 24. Bd1 {[%clk 0:00:36]}  Qd7 {[%clk 0:00:28]} 25. Bf3 {[%clk 0:00:35]}  Rc7 {[%clk 0:00:20]} 26. Rxh6 {[%clk 0:00:31]}  Nd8 {[%clk 0:00:20]} 27. Qa5 {[%clk 0:00:27]}  Rb6 {[%clk 0:00:15]} 28. Rxb6 {[%clk 0:00:21]}  axb6 {[%clk 0:00:15]} 29. Qxb6 {[%clk 0:00:22]}  Kc8 {[%clk 0:00:12]} 30. Rh8 {[%clk 0:00:21]}  Bxf3 {[%clk 0:00:11]} 31. gxf3 {[%clk 0:00:21]}  Rxc3 {[%clk 0:00:10]} 32. Ne2 {[%clk 0:00:15]}  Rc6 {[%clk 0:00:09]} 33. Qa5 {[%clk 0:00:13]}  Kb7 {[%clk 0:00:00]} 34. Rxd8 {[%clk 0:00:12]} 1-0

[Event "December 5 Early 2023"]
[Site "https://www.chess.com"]
[Date "2023.12.05"]
[Round "10"]
[White "Moksh Amit Doshi"]
[Black "Alikhanov, Felix"]
[Result "0-1"]
[Board "55"]
[TimeControl "180+1"]
[WhiteFideId "25064967"]
[BlackFideId "4157427"]
[WhiteElo "2648"]
[BlackElo "2535"]
[WhiteTeam "IND"]
[BlackTeam "RUS"]
[WhiteClock "0:00:09"]
[BlackClock "0:00:05"]

1. d4 {[%clk 0:02:50]}  Nf6 {[%clk 0:02:59]} 2. c4 {[%clk 0:02:46]}  g6 {[%clk 0:03:00]} 3. Nc3 {[%clk 0:02:44]}  Bg7 {[%clk 0:03:00]} 4. e4 {[%clk 0:02:43]}  d6 {[%clk 0:03:01]} 5. Be2 {[%clk 0:02:44]}  O-O {[%clk 0:03:00]} 6. Be3 {[%clk 0:02:44]}  c6 {[%clk 0:02:57]} 7. Nf3 {[%clk 0:02:43]}  Ng4 {[%clk 0:02:56]} 8. Bg5 {[%clk 0:02:40]}  h6 {[%clk 0:02:54]} 9. Bh4 {[%clk 0:02:40]}  g5 {[%clk 0:02:55]} 10. Bg3 {[%clk 0:02:39]}  a6 {[%clk 0:02:49]} 11. Nxg5 {[%clk 0:02:28]}  Nxf2 {[%clk 0:02:47]} 12. Bxf2 {[%clk 0:02:29]}  hxg5 {[%clk 0:02:48]} 13. Be3 {[%clk 0:02:28]}  e5 {[%clk 0:02:40]} 14. O-O {[%clk 0:02:25]}  b5 {[%clk 0:02:27]} 15. d5 {[%clk 0:02:21]}  b4 {[%clk 0:02:20]} 16. Na4 {[%clk 0:02:03]}  c5 {[%clk 0:02:20]} 17. Qd2 {[%clk 0:02:02]}  g4 {[%clk 0:02:15]} 18. b3 {[%clk 0:02:00]}  f5 {[%clk 0:02:11]} 19. exf5 {[%clk 0:02:00]}  Bxf5 {[%clk 0:02:11]} 20. Rf2 {[%clk 0:01:29]}  Nd7 {[%clk 0:02:10]} 21. Raf1 {[%clk 0:01:28]}  Bg6 {[%clk 0:02:03]} 22. Bxg4 {[%clk 0:01:27]}  Rxf2 {[%clk 0:02:01]} 23. Qxf2 {[%clk 0:01:22]}  Nf8 {[%clk 0:01:54]} 24. Bf5 {[%clk 0:01:15]}  Ra7 {[%clk 0:01:49]} 25. Bxg6 {[%clk 0:01:12]}  Nxg6 {[%clk 0:01:48]} 26. Qf5 {[%clk 0:01:13]}  Qe8 {[%clk 0:01:46]} 27. Nb6 {[%clk 0:01:08]}  Rf7 {[%clk 0:01:44]} 28. Qxf7+ {[%clk 0:01:04]}  Qxf7 {[%clk 0:01:44]} 29. Rxf7 {[%clk 0:01:05]}  Kxf7 {[%clk 0:01:44]} 30. Na4 {[%clk 0:01:01]}  e4 {[%clk 0:01:43]} 31. Kf2 {[%clk 0:01:00]}  Bd4 {[%clk 0:01:41]} 32. g3 {[%clk 0:00:57]}  Ne5 {[%clk 0:01:40]} 33. h3 {[%clk 0:00:55]}  a5 {[%clk 0:01:32]} 34. Nb6 {[%clk 0:00:54]}  Ke7 {[%clk 0:01:19]} 35. g4 {[%clk 0:00:54]}  Ng6 {[%clk 0:01:00]} 36. Ke2 {[%clk 0:00:53]}  Ne5 {[%clk 0:00:59]} 37. Bg5+ {[%clk 0:00:52]}  Ke8 {[%clk 0:00:56]} 38. Nc8 {[%clk 0:00:52]}  Kd7 {[%clk 0:00:52]} 39. Nb6+ {[%clk 0:00:39]}  Kc7 {[%clk 0:00:49]} 40. Na4 {[%clk 0:00:40]}  Kd7 {[%clk 0:00:50]} 41. Bc1 {[%clk 0:00:40]}  Nd3 {[%clk 0:00:48]} 42. Be3 {[%clk 0:00:37]}  Ne5 {[%clk 0:00:47]} 43. Bd2 {[%clk 0:00:20]}  Nf3 {[%clk 0:00:45]} 44. g5 {[%clk 0:00:17]}  Ng1+ {[%clk 0:00:40]} 45. Kf1 {[%clk 0:00:17]}  Nf3 {[%clk 0:00:40]} 46. Ke2 {[%clk 0:00:17]}  Ng1+ {[%clk 0:00:40]} 47. Kf1 {[%clk 0:00:17]}  Nf3 {[%clk 0:00:41]} 48. Bc1 {[%clk 0:00:17]}  Ke7 {[%clk 0:00:36]} 49. Kg2 {[%clk 0:00:15]}  Kf7 {[%clk 0:00:30]} 50. Nb6 {[%clk 0:00:15]}  Kg6 {[%clk 0:00:30]} 51. Nc8 {[%clk 0:00:15]}  Be5 {[%clk 0:00:31]} 52. Be3 {[%clk 0:00:15]}  Nxg5 {[%clk 0:00:30]} 53. Nb6 {[%clk 0:00:13]}  Nf3 {[%clk 0:00:27]} 54. Nd7 {[%clk 0:00:14]}  Kf5 {[%clk 0:00:25]} 55. Kf2 {[%clk 0:00:14]}  Nd4 {[%clk 0:00:23]} 56. Nf8 {[%clk 0:00:15]}  Nf3 {[%clk 0:00:17]} 57. Ne6 {[%clk 0:00:14]}  Nh4 {[%clk 0:00:17]} 58. Bg5 {[%clk 0:00:13]}  Ng6 {[%clk 0:00:16]} 59. Bd8 {[%clk 0:00:13]}  Bd4+ {[%clk 0:00:14]} 60. Ke2 {[%clk 0:00:13]}  Ne5 {[%clk 0:00:10]} 61. Bxa5 {[%clk 0:00:13]}  Nd3 {[%clk 0:00:11]} 62. Bc7 {[%clk 0:00:12]}  Nc1+ {[%clk 0:00:11]} 63. Kd1 {[%clk 0:00:13]}  Nxa2 {[%clk 0:00:11]} 64. Bxd6 {[%clk 0:00:13]}  e3 {[%clk 0:00:10]} 65. Bf4 {[%clk 0:00:11]}  Nc3+ {[%clk 0:00:08]} 66. Kc2 {[%clk 0:00:12]}  Ke4 {[%clk 0:00:08]} 67. d6 {[%clk 0:00:12]}  e2 {[%clk 0:00:08]} 68. Bd2 {[%clk 0:00:12]}  Bf6 {[%clk 0:00:06]} 69. d7 {[%clk 0:00:12]}  Kf3 {[%clk 0:00:06]} 70. d8=Q {[%clk 0:00:12]}  Bxd8 {[%clk 0:00:07]} 71. Nxd8 {[%clk 0:00:12]}  Ne4 {[%clk 0:00:07]} 72. Ne6 {[%clk 0:00:12]}  Nxd2 {[%clk 0:00:06]} 73. Kb2 {[%clk 0:00:09]}  e1=Q {[%clk 0:00:05]} 0-1